Cogmind - Beta 16 @@@ ROGUE MODE // 2026.01.21 @ 21:10:43 Player: DreamCore Result: Destroyed by 3C-B0N(p) with Light Nuclear Core chain reaction Performance ------------- Evolutions (0) 0 Regions Visited (3) 600 Robots Destroyed (2) 10 Value Destroyed (80) 80 Prototype IDs (0) 0 Alien Tech Used (0) 0 Bonus (800) 800 TOTAL SCORE: 1490 Bonus ------- Registered with UFD 300 Met Optimus in HQ 500 Cogmind --------- Core Integrity 0/250 Matter 300/300 Energy 78/100 System Corruption 0% Temperature Cool (27) Movement Walking (170) Ox1 Location -9/Scraptown Parts ------- > --- POWER (1) -------- (None) > --- PROPULSION (2) --- Overtuned Titanium Leg Overtuned Titanium Leg > --- UTILITY (2) ------ Large Storage Unit > --- WEAPON (2) ------- Subdweller Laser Makeshift Spear > --- INVENTORY (15) --- Ion Engine Overtuned Titanium Leg VSS Leg VSS Leg VSS Leg Scrap Suit Improved Heat Sink IFF Parser Terrain Scanner Makeshift Salvage Targeting Computer Transmission Jammer Tech Extrapolator Subdweller Laser Field Laser Peak State ------------ > --- POWER ------------ Ion Engine > --- PROPULSION ------- Overtuned Titanium Leg Overtuned Titanium Leg > --- UTILITY ---------- Large Storage Unit Sensor Array > --- WEAPON ----------- Overtuned Pulse Rifle Overtuned Beamcaster > --- INVENTORY -------- VSS Leg VSS Leg VSS Leg Scrap Suit Improved Heat Sink IFF Parser Terrain Scanner Transmission Jammer Subdweller Laser Subdweller Laser Field Laser Makeshift Spear [Rating: 22] Favorites ----------- Power Ion Engine Engine Ion Engine Propulsion Aluminum Leg Leg Aluminum Leg Wheel Subdweller Monowheel Utility Light Armor Plating Device Sensor Array Storage Small Storage Unit Protection Light Armor Plating Weapon Medium Laser Energy Gun Medium Laser Ballistic Gun Assault Rifle Piercing Weapon Makeshift Spear Build | -11 -10 -10 -9 ------- Run | Yrd Mat Sub Scr Slots Evolved . | . . . . Power . | . . . . Propulsion . | . . . . Utility . | . . . . Weapon . | . . . . Parts Attached 14 | . 2 3 9 Power . | . . . . Engine . | . . . . Core . | . . . . Reactor . | . . . . Propulsion 5 | . . 1 4 Treads . | . . . . Leg 3 | . . 1 2 Wheel 2 | . . . 2 Hover . | . . . . Flight . | . . . . Utility 3 | . 1 1 1 Device 1 | . 1 . . Storage 1 | . . . 1 Processor . | . . . . Hackware . | . . . . Protection 1 | . . 1 . Artifact . | . . . . Weapon 6 | . 1 1 4 Energy Gun 5 | . 1 1 3 Energy Cannon . | . . . . Ballistic Gun . | . . . . Ballistic Cannon . | . . . . Launcher . | . . . . Special Weapon . | . . . . Impact Weapon . | . . . . Slashing Weapon . | . . . . Piercing Weapon 1 | . . . 1 Special Melee Weapon . | . . . . Unidentified Prototypes . | . . . . Parts Lost 3 | . . . 3 Power 1 | . . . 1 Propulsion 1 | . . . 1 Utility 1 | . . . 1 Weapon . | . . . . Highest Loss Streak 3 | . . . 3 To Critical Strikes . | . . . . Average Backups 9 | 6 7 7 9 Power . | 1 1 . . Propulsion 1 | 4 3 1 1 Utility 3 | . 2 3 4 Weapon 3 | 1 1 2 3 Tool/Special . | . . . . Unused Backups 33 | . 7 9 17 Power 3 | . 1 1 1 Propulsion 14 | . 4 4 6 Utility 10 | . 1 2 7 Weapon 6 | . 1 2 3 Tool/Special . | . . . . Average Slot Usage (%) 98 | . 91 100 99 Engine 13 | . 14 14 13 Leg 22 | . 28 28 21 Wheel 5 | . . . 6 Device 1 | . 5 3 . Storage 14 | . 14 14 14 Protection 11 | . . 10 13 Energy Gun 25 | . 5 24 27 Ballistic Gun 2 | . 22 3 . Peak Build Rating 22 | 6 7 9 22 Average Rating 9 | 6 6 8 10 On Entrance 7 | 6 6 7 9 Avg Prop Armor Cover (%) 14 | . . . 14 Naked Turns . | . . . . Heaviest Build 36 | 13 15 19 36 Greatest Support 38 | 20 20 20 38 Greatest Overweight (x) 1 | . . . 1 Average Overweight (x) . | . . . . Largest Inventory Capacity 15 | 8 8 8 15 Average Capacity 9 | 8 8 8 10 Most Carried 15 | 6 8 8 15 Average Carried 9 | 6 7 7 9 Final Capacity 15 | 8 8 8 15 Final Carried 15 | 6 7 8 15 Class Distribution -------------------- 100% | Mutant Dominant Class ---------------- Mutant | -10/Materials Mutant | -10/Subcaves Mutant | -9/Scraptown Resources | -11 -10 -10 -9 ----------- Run | Yrd Mat Sub Scr Matter Collected 360 | 200 . 50 110 Remotely . | . . . . Salvage Created 91 | . . 51 40 Parts 6 | . . 3 3 Haulers Intercepted . | . . . . Recyclers Shooed . | . . . . Parts Field Recycled . | . . . . Retrieved Matter . | . . . . Parts Self-Destructed 9 | . . 9 . Prevented . | . . . . Parts Restored . | . . . . Kills | -11 -10 -10 -9 ------- Run | Yrd Mat Sub Scr Combat Hostiles Destroyed 2 | . . 1 1 Guns 2 | . . 1 1 Classes Destroyed 2 | . . 1 1 Subdweller 1 | . . 1 . Explorer 1 | . . . 1 Best Kill Streak 1 | . . 1 1 Combat Bots Only 1 | . . 1 1 Max Kills in Single Turn 1 | . . 1 1 Gunslinging . | . . . . Exploded . | . . . . Melee . | . . . . Uniques/NPCs Destroyed . | . . . . Combat | -11 -10 -10 -9 -------- Run | Yrd Mat Sub Scr Hostile Shots Fired 124 | . . 42 82 Missed 49 | . . 20 29 Hits 75 | . . 22 53 Projectile 75 | . . 22 53 AOE 1 | . . . 1 Critical Strikes 3 | . . 1 2 Part Disruptions 1 | . . . 1 Damage Taken 924 | . . 190 734 Core 254 | . . 36 218 Absorbed by Shields . | . . . . Core Remaining (%) 100 | 100 . . . Volleys Fired 16 | . . 8 8 Largest 2 | . . 2 2 Hottest 180 | . . 110 180 Shots Fired 27 | . . 16 11 Gun 27 | . . 16 11 Cannon . | . . . . Launcher . | . . . . Special . | . . . . Kinetic . | . . . . Thermal 27 | . . 16 11 Explosive . | . . . . Electromagnetic . | . . . . Robot Hit Streak 10 | . . 10 4 Robot Miss Streak 4 | . . 4 2 Penetration Max . | . . . . Secondary Targets 1 | . . . 1 Max Gunslinging Chain 1 | . . . 1 Shots Hit Robots 18 | . . 11 7 Core Hits 6 | . . 2 4 Critical Kills 1 | . . 1 . Critical Parts Destroyed . | . . . . Critical Strikes 3 | . . 3 . Burn 2 | . . 2 . Destroy 1 | . . 1 . Melee Attacks . | . . . . Impact . | . . . . Slashing . | . . . . Piercing . | . . . . Sneak Attacks . | . . . . Combat Hostiles . | . . . . Follow-up Attacks . | . . . . Damage Inflicted 163 | . . 45 118 Guns 163 | . . 45 118 Cannons . | . . . . Explosions . | . . . . Melee . | . . . . Ramming . | . . . . Kinetic . | . . . . Thermal 163 | . . 45 118 Explosive . | . . . . Electromagnetic . | . . . . Impact . | . . . . Slashing . | . . . . Piercing . | . . . . Highest Corruption . | . . . . Average Corruption . | . . . . Corruption Purged . | . . . . Corruption Blocked . | . . . . Overload Shots . | . . . . Overflow Damage . | . . . . Projectiles . | . . . . Explosions . | . . . . Melee . | . . . . Knockbacks . | . . . . Impact . | . . . . Kinetic . | . . . . Secondary . | . . . . Self-Inflicted Damage . | . . . . Shots . | . . . . Rammed . | . . . . Targets Rammed . | . . . . Kicked . | . . . . Crushed . | . . . . Highest Temperature 276 | . . 5 276 Average Temperature 136 | . . 4 140 Received Heat Transfer 464 | . . 78 386 Siege Activations . | . . . . Martial Activations . | . . . . Shielding Activations . | . . . . Robots Disrupted . | . . . . Combat Hostiles . | . . . . Robots Corrupted . | . . . . Combat Hostiles . | . . . . Parts Fried . | . . . . Impact Corruptions . | . . . . Robots Melted . | . . . . Combat Hostiles . | . . . . Parts Melted 3 | . . 3 . Heat Transferred 471 | . . 247 224 Parts Sabotaged . | . . . . Parts Stolen . | . . . . Parts Stripped . | . . . . Power Chain Reactions . | . . . . Alert | -11 -10 -10 -9 ------- Run | Yrd Mat Sub Scr Maximum Alert Level . | . . . . Low Security (%) 100 | 100 100 . . Level 1 . | . . . . Level 2 . | . . . . Level 3 . | . . . . Level 4 . | . . . . Level 5 . | . . . . High Security . | . . . . Max Security . | . . . . Peak Influence . | . . . . Initial . | . . . . Average . | . . . . Influence Increases 60 | . . 60 . Lose Combat Pursuer 60 | . . 60 . Influence Decreases 60 | . . 30 30 Entered New Map 30 | . . . 30 Time Decay 30 | . . 30 . Squads Dispatched 1 | . 1 . . Investigation 1 | . 1 . . Extermination . | . . . . Reinforcement . | . . . . Assault . | . . . . Garrison . | . . . . Intercept . | . . . . Searches Triggered . | . . . . Construction Impeded . | . . . . Haulers Reinforced . | . . . . Active Scanning Responses . | . . . . Cargo Convoy Interrupts . | . . . . Stealth | -11 -10 -10 -9 --------- Run | Yrd Mat Sub Scr Distress Signals . | . . . . Communications Jammed . | . . . . Distress Signals . | . . . . Times Spotted 32 | . . 14 18 Peak Tracking Total 13 | . . 6 13 Tactical Retreats 2 | . . 2 . Traps | -11 -10 -10 -9 ------- Run | Yrd Mat Sub Scr Traps Triggered 1 | . 1 . . Indirectly . | . . . . Trap Hack Attempts . | . . . . Triggered . | . . . . Disarmed . | . . . . Reprogrammed . | . . . . Reused . | . . . . Traps Extracted . | . . . . Installed . | . . . . Triggered . | . . . . Machines | -11 -10 -10 -9 ---------- Run | Yrd Mat Sub Scr Machines Disabled 1 | . . . 1 Max in Single Turn 1 | . . . 1 Machines Repaired . | . . . . Machines Dismantled . | . . . . Machines Sabotaged . | . . . . Overloaded Fab Kills . | . . . . Hacking | -11 -10 -10 -9 --------- Run | Yrd Mat Sub Scr Machines Accessed 3 | . . . 3 Terminals . | . . . . Fabricators . | . . . . Repair Stations . | . . . . Recycling Units . | . . . . Scanalyzers . | . . . . Garrison Access . | . . . . Total Hacks 14 | . . . 14 Successful 14 | . . . 14 Failed . | . . . . Catastrophic . | . . . . Database Lockouts . | . . . . Manual . | . . . . Terminals . | . . . . Fabricators . | . . . . Repair Stations . | . . . . Recycling Units . | . . . . Scanalyzers . | . . . . Garrison Access . | . . . . Terminal Hacks 14 | . . . 14 Record 14 | . . . 14 Fabricator Hacks . | . . . . Repair Station Hacks . | . . . . Recycling Unit Hacks . | . . . . Scanalyzer . | . . . . Garrison Access Hacks . | . . . . Unauthorized Hacks . | . . . . Terminals . | . . . . Fabricators . | . . . . Repair Stations . | . . . . Recycling Units . | . . . . Scanalyzers . | . . . . Garrison Access . | . . . . Data Cores Recovered . | . . . . Used . | . . . . Hacking Detections . | . . . . Full Trace Events . | . . . . Feedback Events . | . . . . Feedback Blocked . | . . . . Robot Schematics Acquired . | . . . . Robots Built . | . . . . Authchips . | . . . . Time . | . . . . Total Robot Build Rating . | . . . . Part Schematics Acquired . | . . . . Parts Built . | . . . . Authchips . | . . . . Time . | . . . . Total Part Build Rating . | . . . . Part Studies Acquired . | . . . . Parts Repaired . | . . . . Time . | . . . . Parts Recycled . | . . . . Recycled Matter . | . . . . Retrieved Matter . | . . . . Retrieved Components . | . . . . Parts Scanalyzed . | . . . . Part Schematics Acquired . | . . . . Parts Damaged . | . . . . Bothacking | -11 -10 -10 -9 ------------ Run | Yrd Mat Sub Scr Used RIF Installer . | . . . . Robots Hacked . | . . . . Non-combat . | . . . . Combat . | . . . . Robot Hacks Applied . | . . . . Relay Couplers Released . | . . . . Fabnet Peak Effective % . | . . . . Robots Rewired . | . . . . Allies Hacked . | . . . . Hacks Repelled . | . . . . Allies | -11 -10 -10 -9 -------- Run | Yrd Mat Sub Scr Total Allies . | . . . . Largest Group . | . . . . Highest-Rated Group . | . . . . Highest-Rated Ally . | . . . . Total Orders . | . . . . Ally Attacks . | . . . . Total Damage . | . . . . Kills . | . . . . Allies Corrupted . | . . . . Allies Melted 3 | . . . 3 Intel | -11 -10 -10 -9 ------- Run | Yrd Mat Sub Scr Active Infowar (turns) 206 | . 79 61 66 Sensors 206 | . 79 61 66 Robot Analysis Total . | . . . . Derelict Logs Recovered 4 | . . . 4 Drone Launches . | . . . . Drone Recoveries . | . . . . Exploration | -11 -10 -10 -9 ------------- Run | Yrd Mat Sub Scr Turns Passed 2125 | 8 193 293 1631 Spaces Moved 1666 | 7 154 160 1345 Core . | . . . . Treads . | . . . . Legs 1324 | 7 154 160 1003 Wheels 342 | . . . 342 Hover . | . . . . Flight . | . . . . Fastest Speed 100 | 120 120 120 100 Average Speed 117 | 120 120 120 117 Slowest Speed 190 | 120 120 120 190 Overloaded Moves . | . . . . Propulsion Burnouts . | . . . . Robots Hopped . | . . . . Potential Cave-ins . | . . . . Cave-ins Triggered . | . . . . Exploration Rate (%) 33 | 2 25 20 87 Regions Visited 3 Branch Regions 2 Pre-discovered Areas 2 | . . . 2 Known Exits Taken . | . . . . Unknown Exits Taken 3 | 1 1 1 . Scrap Searched 1 | . . . 1 Spaces Dug . | . . . . Terrain Destroyed . | . . . . Melee . | . . . . Projectile . | . . . . AOE . | . . . . Terrain Rammed . | . . . . Walls Destroyed . | . . . . Machines Disabled . | . . . . Actions | -11 -10 -10 -9 --------- Run | Yrd Mat Sub Scr Total 1816 | 6 162 250 1398 Wait 60 | . 2 58 . Move 1663 | 6 153 159 1345 Hop . | . . . . Pick Up 33 | . 3 11 19 Fast Attach 1 | . 1 . . Attach 5 | . . . 5 Detach . | . . . . Swap 10 | . 1 3 6 Drop 28 | . 2 11 15 Fire 16 | . . 8 8 Melee . | . . . . Ram . | . . . . Kick . | . . . . Crush . | . . . . Escape Stasis . | . . . . Rewire . | . . . . Trap . | . . . . Miscellaneous . | . . . . Route ------- -11/Scrapyard -10/Materials (discovered 2 exits: [*Min] / [*Sub]) -10/Subcaves (discovered 2 exits: [*Rec] / *Scr) -9/Scraptown (discovered 2 exits: *Fac x2) History --------- Turn | Location | Event 1 | -11/Scrapyard | Discovered new exit (range 3) 9 | -11/Scrapyard | Entered Materials 10 | -10/Materials | Met a group of wandering Federalists 48 | -10/Materials | Discovered new exit (range 15) 105 | -10/Materials | Discovered new exit (range 7) 202 | -10/Materials | Entered Subcaves 203 | -10/Subcaves | Continued accompanying wandering Federalists (6) 203 | -10/Subcaves | Approached by a straggling Scientist 257 | -10/Subcaves | Shifting Twisted Machinery released Sub. Laser 283 | -10/Subcaves | Shifting Twisted Machinery released Piercing Trap 320 | -10/Subcaves | Build established: Mutant 452 | -10/Subcaves | Wandering Federalist uncovered a shortcut to Scraptown 484 | -10/Subcaves | Lost 3 allies 494 | -10/Subcaves | Discovered new exit (range 15) 495 | -10/Subcaves | Entered Scraptown 819 | -9/Scraptown | Scanned Subdweller tech in exchange for log data 821 | -9/Scraptown | Learned Research terminal intel 823 | -9/Scraptown | Learned 12 Factory zone layouts 824 | -9/Scraptown | Learned location of Armory (-3) 825 | -9/Scraptown | Learned location of Warlord (-4) 847 | -9/Scraptown | Discovered new exit (range 3) 938 | -9/Scraptown | Visited Cyclists 952 | -9/Scraptown | Visited Spacefarers 1007 | -9/Scraptown | Visited Red Mages 1109 | -9/Scraptown | Visited Assassins FH 1151 | -9/Scraptown | Visited UFD Registry 1151 | -9/Scraptown | Registered with UFD as "Wrenchcell" 1178 | -9/Scraptown | Visited SPCMW 1209 | -9/Scraptown | Visited Comm Corps 1291 | -9/Scraptown | Visited TADAMA 1540 | -9/Scraptown | Visited Scrapoid Research Area 1589 | -9/Scraptown | Visited Abandonware Association 1617 | -9/Scraptown | Learned abandonware demo "ERRANTS.EXE" 1648 | -9/Scraptown | Visited Junk Repository 1886 | -9/Scraptown | Met Optimus 1886 | -9/Scraptown | Accepted into 0bPrime 1956 | -9/Scraptown | Civil war broke out across Scraptown 1989 | -9/Scraptown | Visited Modified Component R&D 2029 | -9/Scraptown | Lost 3 allies 2034 | -9/Scraptown | Identified exit to Factory 2043 | -9/Scraptown | Found Scrap Suit 2050 | -9/Scraptown | Optimus destroyed in the chaos of civil war 2088 | -9/Scraptown | Core integrity fell below 50% 2124 | -9/Scraptown | Core integrity fell below 20% 2126 | -9/Scraptown | Destroyed by 3C-B0N(p) with Light Nuclear Core chain reaction Last Messages --------------- 02096_ Dropped Ovr. Pulse Rifle. 02102_ Destroyed EM Pulse Gun. 02105_ Acquired 40 matter. 02106_ Critical hit (Burn: +50). 02107_ Sensor Array destroyed. 02109_ Acquired Mak. Salvage Targeting Computer. 02109_ Ion Engine destroyed. 02110_ 9B-VBK(j) heat short circuits Ovr. Pulse Rifle. 02110_ 9B-VBK(j) overheating. 02111_ Bolt penetrates Wall. 02114_ Penetrated by Bolt. 02118_ Acquired Tech Extrapolator. 02119_ Acquired 10 matter. 02121_ Penetrated by Bolt. 02123_ Acquired Ion Engine. 02124_ Penetrated by Bolt. 02124_ Bolt penetrates BO-7YI(j). 02126_ 9B-VBK(j) heat damages Ovr. Titanium Leg. 02126_ Chain reaction triggered in Lgt. Nuclear Core. 02126_ JF-4SD(h) destroyed. Map ----- +----------------------------------------------------+ | | | ?????????????????????????????????????????????????? | | ?????????????????????????????????????????????????? | | ?????????????????????????????????????????????????? | | ?????????????????????????????????????????????????? | | ?????????????????????????????????????????????????? | | ?????????????????????????????????????????????????? | | ?????????????????????????????????????????????????? | | ?????????????????????????????????????????????????? | | ?????????????????????????????????????????????????? | | ?????????????????????????????????????????????????? | | ?????????????????????????????????????????????????? | | ?????????????????????????????????????????????????? | | ?????????????????????????????????????????????????? | | ?????????????????????????###?????????????????????? | | ????????????????????????#%=###?????